Workbook

Sheet Sheet1
B1: Derivative of y = sin (x3)
B3: This DIGMath unit explores
C4: the derivative function of
D5: y = sin (x3)
B6: on any interval from x = a to x = b.
A8: The function in terms of x: f'(x) = | F8: sin(x^3)
A11: Now enter the interval for x:
C12: xMin = | D12: -3.14
C13: xMax = | D13: 3.14
A16: Click each item below for suggestions and investigations
C17: Item 1 | I17: Trace along all the curves: | M17: 228 | P17: x = | Q17: =M17/50-3.14 -> 1.42 | R17: y = | S17: =Sheet2!M4 -> 0.31
C18: Item 2
C19: Item 3
C20: Item 4
C21: Item 5
A25: To access/download all the DIGMath Apps for Calculus | R25: y' = | S25: =Sheet2!M10 -> -5.68
A26: Click this link: | C26: DIGMath for Calculus
A28: Created by: Sheldon P. Gordon
A29: Farmingdale State College
A30: Development of this module was supported by the
A31: NSF's Division of Undergraduate Education
A32: under grants DUE-0310123 and DUE-0442160.
R62: Error = | S62: =Sheet2!M16 -> 0.000097

Sheet Sheet2
C1: x | D1: y = f(x) | E1: x+.00001 | F1: f(x+0.00001) | G1: AppDeriv | I1: Actual | J1: Diff | L1: verticals
D2: =Sheet1!#REF! ->  | I2: Deriv
C3: =Sheet1!D12 -> -3.14 | D3: =SIN(x^3) -> 0.4410627973 | E3: =x+0.00001 -> -3.13999 | F3: =SIN((x+0.00001)^3) -> 0.4413282399 | G3: =(F3-D3)/dxx -> 26.54425597 | I3: =3*x^2*COS(x^3) -> 26.54627033 | J3: =I3-G3 -> 0.002014358139 | L3: =x0 -> 1.42 | M3: 0
C4: =C3+Sheet2!B$12 -> -3.1086 | D4: 0.981145154 | E4: -3.10859 | F4: 0.9812011426 | G4: 5.598858493 | I4: 5.602999492 | J4: =I4-G4 -> 0.004140998271 | L4: =L3 -> 1.42 | M4: =LOOKUP(x0,C3:C203,D3:D203) -> 0.3149848169
C5: =C4+Sheet2!B$12 -> -3.0772 | D5: 0.7605532393 | E5: -3.07719 | F5: 0.7603687664 | G5: -18.44729112 | I5: -18.44428255 | J5: 0.003008568644
C6: =C5+Sheet2!B$12 -> -3.0458 | D6: -0.01875795019 | E6: -3.04579 | F6: -0.01903620651 | G6: -27.82563186 | I6: -27.82579623 | J6: -0.0001643609216 | L6: =L4 -> 1.42 | M6: =M4 -> 0.3149848169
C7: =C6+Sheet2!B$12 -> -3.0144 | D7: -0.7730686383 | E7: -3.01439 | F7: -0.7732415241 | G7: -17.28858531 | I7: -17.29151519 | J7: -0.002929886216
C8: =C7+Sheet2!B$12 -> -2.983 | D8: -0.9872366068 | E8: -2.98299 | F8: -0.9871940574 | G8: 4.254939072 | I8: 4.251435796 | J8: -0.003503276426 | L8: Derivative
C9: =C8+Sheet2!B$12 -> -2.9516 | D9: -0.5492182068 | E9: -2.95159 | F9: -0.5489997771 | G9: 21.84296342 | I9: 21.84116188 | J9: -0.001801544881 | L9: =x0 -> 1.42 | M9: 0
C10: =C9+Sheet2!B$12 -> -2.9202 | D10: 0.2285003868 | E10: -2.92019 | F10: 0.2287494373 | G10: 24.90505025 | I10: 24.90588354 | J10: 0.000833293062 | L10: =L9 -> 1.42 | M10: =LOOKUP(x0,C3:C203,G3:G203) -> -5.684907941
C11: =C10+Sheet2!B$12 -> -2.8888 | D11: 0.8548321615 | E11: -2.88879 | F11: 0.8549620446 | G11: 12.98830998 | I11: 12.99103401 | J11: 0.002724028987
A12: delta x = | B12: =(xMax-xMin)/200 -> 0.0314 | C12: =C11+Sheet2!B$12 -> -2.8574 | D12: 0.9732011811 | E12: -2.85739 | F12: 0.9731448264 | G12: -5.635472863 | I12: -5.632573213 | J12: 0.002899649426 | L12: =L9 -> 1.42 | M12: =M10 -> -5.684907941
C13: =C12+Sheet2!B$12 -> -2.826 | D13: 0.5464063674 | E13: -2.82599 | F13: 0.5462056924 | G13: -20.06749941 | I13: -20.06600236 | J13: 0.001497048127
C14: =C13+Sheet2!B$12 -> -2.7946 | D14: -0.1651516676 | E14: -2.79459 | F14: -0.1653827386 | G14: -23.10710349 | I14: -23.10763967 | J14: -0.0005361823589 | L14: Error
A15: dxx = | B15: =0.00001 -> 1e-05 | C15: =C14+Sheet2!B$12 -> -2.7632 | D15: -0.7791814264 | E15: -2.76319 | F15: -0.7793249787 | G15: -14.35523816 | I15: -14.35733432 | J15: -0.002096161589 | L15: =x0 -> 1.42 | M15: 0
C16: =C15+Sheet2!B$12 -> -2.7318 | D16: -0.9994334531 | E16: -2.73179 | F16: -0.999425893 | G16: 0.7560144362 | I16: 0.7535124829 | J16: -0.002501953302 | L16: =L15 -> 1.42 | M16: =LOOKUP(x0,C3:C203,J3:J209) -> 9.673263455e-05
C17: =C16+Sheet2!B$12 -> -2.7004 | D17: -0.7461053236 | E17: -2.70039 | F17: -0.7459596465 | G17: 14.56770323 | I17: 14.56597194 | J17: -0.001731287525
C18: =C17+Sheet2!B$12 -> -2.669 | D18: -0.162504523 | E18: -2.66899 | F18: -0.1622936539 | G18: 21.08691149 | I18: 21.08661958 | J18: -0.0002919153469 | L18: =L15 -> 1.42 | M18: =M16 -> 9.673263455e-05
C19: =C18+Sheet2!B$12 -> -2.6376 | D19: 0.4793794088 | E19: -2.63759 | F19: 0.4795625615 | G19: 18.31526355 | I19: 18.31637718 | J19: 0.001113633515
C20: =C19+Sheet2!B$12 -> -2.6062 | D20: 0.9117480244 | E20: -2.60619 | F20: 0.911831703 | G20: 8.367859532 | I20: 8.36978455 | J20: 0.001925017372 | L20: Envelopes
C21: =C20+Sheet2!B$12 -> -2.5748 | D21: 0.9782641318 | E21: -2.57479 | F21: 0.9782228707 | G21: -4.126110906 | I21: -4.124192137 | J21: 0.001918769582 | L21: -3.2 | M21: =-3*L21^2 -> -30.72
C22: =C21+Sheet2!B$12 -> -2.5434 | D22: 0.6779682663 | E22: -2.54339 | F22: 0.6778255975 | G22: -14.26687806 | I22: -14.26565758 | J22: 0.001220487097 | L22: 0 | M22: 0
C23: =C22+Sheet2!B$12 -> -2.512 | D23: 0.1426303802 | E23: -2.51199 | F23: 0.1424430095 | G23: -18.73706855 | I23: -18.73688769 | J23: 0.0001808626566 | L23: =-L21 -> 3.2 | M23: =-3*L23^2 -> -30.72
C24: =C23+Sheet2!B$12 -> -2.4806 | D24: -0.4294628242 | E24: -2.48059 | F24: -0.4296295268 | G24: -16.67025809 | I24: -16.67105714 | J24: -0.0007990483121
C25: =C24+Sheet2!B$12 -> -2.4492 | D25: -0.8501339179 | E25: -2.44919 | F25: -0.8502286633 | G25: -9.474540272 | I25: -9.475955568 | J25: -0.001415295284 | L25: -3.2 | M25: =3*L25^2 -> 30.72
C26: =C25+Sheet2!B$12 -> -2.4178 | D26: -0.999994568 | E26: -2.41779 | F26: -0.9999939746 | G26: 0.05934119434 | I26: 0.0578036755 | J26: -0.001537518838 | L26: 0 | M26: 0
C27: =C26+Sheet2!B$12 -> -2.3864 | D27: -0.8541689673 | E27: -2.38639 | F27: -0.8540801155 | G27: 8.885185089 | I27: 8.883975764 | J27: -0.001209325052 | L27: =-L25 -> 3.2 | M27: =3*L27^2 -> 30.72
C28: =C27+Sheet2!B$12 -> -2.355 | D28: -0.4746076806 | E28: -2.35499 | F28: -0.4744612267 | G28: 14.64538583 | I28: 14.64479117 | J28: -0.0005946587645
C29: =C28+Sheet2!B$12 -> -2.3236 | D29: 0.0209809065 | E29: -2.32359 | F29: 0.02114284339 | G29: 16.19368818 | I29: 16.19378546 | J29: 9.72850649e-05
C30: =C29+Sheet2!B$12 -> -2.2922 | D30: 0.4992537487 | E30: -2.29219 | F30: 0.4993903173 | G30: 13.65686691 | I30: 13.65754676 | J30: 0.0006798510228 | L30: Points/Verticals
C31: =C30+Sheet2!B$12 -> -2.2608 | D31: 0.8473271893 | E31: -2.26079 | F31: 0.8474086116 | G31: 8.142227912 | I31: 8.143260076 | J31: 0.001032163628 | L31: =x0 -> 1.42 | M31: =3*x0^2 -> 6.0492
C32: =C31+Sheet2!B$12 -> -2.2294 | D32: 0.9963859465 | E32: -2.22939 | F32: 0.9963986007 | G32: 1.265420518 | I32: 1.266533817 | J32: 0.001113299127 | L32: =L31 -> 1.42 | M32: =-M31 -> -6.0492
C33: =C32+Sheet2!B$12 -> -2.198 | D33: 0.9299248465 | E33: -2.19799 | F33: 0.9298715368 | G33: -5.330972688 | I33: -5.330020242 | J33: 0.0009524454418
C34: =C33+Sheet2!B$12 -> -2.1666 | D34: 0.6783976621 | E34: -2.16659 | F34: 0.6782941926 | G34: -10.34694149 | I34: -10.3463166 | J34: 0.0006248911989
C35: =C34+Sheet2!B$12 -> -2.1352 | D35: 0.3048373111 | E35: -2.13519 | F35: 0.3047070462 | G35: -13.02648541 | I35: -13.02626133 | J35: 0.0002240743716
C36: =C35+Sheet2!B$12 -> -2.1038 | D36: -0.1131699614 | E36: -2.10379 | F36: -0.1133018859 | G36: -13.1924587 | I36: -13.19262121 | J36: -0.0001625071592
C37: =C36+Sheet2!B$12 -> -2.0724 | D37: -0.500475478 | E37: -2.07239 | F37: -0.5005870212 | G37: -11.15431767 | I37: -11.15478694 | J37: -0.0004692743146
C38: =C37+Sheet2!B$12 -> -2.041 | D38: -0.7971879716 | E38: -2.04099 | F38: -0.7972634135 | G38: -7.544195031 | I38: -7.54485452 | J38: -0.0006594883961
C39: =C38+Sheet2!B$12 -> -2.0096 | D39: -0.9659328599 | E39: -2.00959 | F39: -0.9659642066 | G39: -3.134673485 | I39: -3.135398009 | J39: -0.0007245238145
C40: =C39+Sheet2!B$12 -> -1.9782 | D40: -0.9936515123 | E40: -1.97819 | F40: -0.993638298 | G40: 1.321430471 | I40: 1.320752414 | J40: -0.0006780562138
C41: =C40+Sheet2!B$12 -> -1.9468 | D41: -0.8890407018 | E41: -1.94679 | F41: -0.8889886408 | G41: 5.206095709 | I41: 5.205547794 | J41: -0.0005479152359
C42: =C41+Sheet2!B$12 -> -1.9154 | D42: -0.6772011817 | E42: -1.91539 | F42: -0.6771201942 | G42: 8.098759388 | I42: 8.098391515 | J42: -0.0003678731263
C43: =C42+Sheet2!B$12 -> -1.884 | D43: -0.3930900793 | E43: -1.88399 | F43: -0.3929921659 | G43: 9.791344893 | I43: 9.791174026 | J43: -0.0001708671679
C44: =C43+Sheet2!B$12 -> -1.8526 | D44: -0.07510194898 | E44: -1.85259 | F44: -0.07499927612 | G44: 10.26728624 | I44: 10.26730187 | J44: 1.56295145e-05
C45: =C44+Sheet2!B$12 -> -1.8212 | D45: 0.2403096178 | E45: -1.82119 | F45: 0.2404062033 | G45: 9.658555359 | I45: 9.658727372 | J45: 0.0001720130377
C46: =C45+Sheet2!B$12 -> -1.7898 | D46: 0.5224899002 | E46: -1.78979 | F46: 0.5225718378 | G46: 8.193765644 | I46: 8.194052709 | J46: 0.0002870645349
C47: =C46+Sheet2!B$12 -> -1.7584 | D47: 0.7488096527 | E47: -1.75839 | F47: 0.7488711285 | G47: 6.147579041 | I47: 6.147936157 | J47: 0.0003571157009
C48: =C47+Sheet2!B$12 -> -1.727 | D48: 0.9054156208 | E48: -1.72699 | F48: 0.9054536019 | G48: 3.7981013 | I48: 3.798485731 | J48: 0.0003844302588
C49: =C48+Sheet2!B$12 -> -1.6956 | D49: 0.9868159239 | E49: -1.69559 | F49: 0.9868298797 | G49: 1.395580729 | I49: 1.395956023 | J49: 0.0003752946113
C50: =C49+Sheet2!B$12 -> -1.6642 | D50: 0.9946708961 | E50: -1.66419 | F50: 0.9946623264 | G50: -0.8569715921 | I50: -0.8566334128 | J50: 0.0003381792689
C51: =C50+Sheet2!B$12 -> -1.6328 | D51: 0.9361482282 | E51: -1.63279 | F51: 0.9361201035 | G51: -2.812461555 | I51: -2.812179359 | J51: 0.0002821960333
C52: =C51+Sheet2!B$12 -> -1.6014 | D52: 0.8221449979 | E52: -1.60139 | F52: 0.8221011986 | G52: -4.379926526 | I52: -4.379710573 | J52: 0.0002159536243
C53: =C52+Sheet2!B$12 -> -1.57 | D53: 0.665602134 | E53: -1.56999 | F53: 0.6655469454 | G53: -5.518861516 | I53: -5.518714693 | J53: 0.0001468225819
C54: =C53+Sheet2!B$12 -> -1.5386 | D54: 0.480056992 | E54: -1.53859 | F54: 0.479994691 | G54: -6.230105738 | I54: -6.230025174 | J54: 8.056392576e-05
C55: =C54+Sheet2!B$12 -> -1.5072 | D55: 0.2785086777 | E55: -1.50719 | F55: 0.2784432244 | G55: -6.545334274 | I55: -6.545313032 | J55: 2.124197706e-05
C56: =C55+Sheet2!B$12 -> -1.4758 | D56: 0.07261458738 | E56: -1.47579 | F56: 0.07254942059 | G56: -6.516679111 | I56: -6.516707772 | J56: -2.866130813e-05
C57: =C56+Sheet2!B$12 -> -1.4444 | D57: -0.1278029175 | E57: -1.44439 | F57: -0.1278649924 | G57: -6.207480694 | I57: -6.207548707 | J57: -6.801268896e-05
C58: =C57+Sheet2!B$12 -> -1.413 | D58: -0.3149848169 | E58: -1.41299 | F58: -0.315041664 | G58: -5.684714471 | I58: -5.684811208 | J58: -9.673756064e-05
C59: =C58+Sheet2!B$12 -> -1.3816 | D59: -0.4832550486 | E59: -1.38159 | F59: -0.4833051814 | G59: -5.013279696 | I59: -5.01339522 | J59: -0.0001155235637
C60: =C59+Sheet2!B$12 -> -1.3502 | D60: -0.6288894317 | E60: -1.35019 | F60: -0.6289319525 | G60: -4.25208662 | I60: -4.252212168 | J60: -0.0001255482565
C61: =C60+Sheet2!B$12 -> -1.3188 | D61: -0.7498872232 | E61: -1.31879 | F61: -0.7499217404 | G61: -3.451723224 | I61: -3.451851474 | J61: -0.0001282502605
C62: =C61+Sheet2!B$12 -> -1.2874 | D62: -0.8456903849 | E62: -1.28739 | F62: -0.845716919 | G62: -2.653405957 | I62: -2.653531107 | J62: -0.0001251498778
C63: =C62+Sheet2!B$12 -> -1.256 | D63: -0.9168859271 | E63: -1.25599 | F63: -0.9169048161 | G63: -1.888899647 | I63: -1.889017366 | J63: -0.0001177190991
C64: =C63+Sheet2!B$12 -> -1.2246 | D64: -0.9649170319 | E64: -1.22459 | F64: -0.964928843 | G64: -1.181110654 | I64: -1.18121795 | J64: -0.000107296143
C65: =C64+Sheet2!B$12 -> -1.1932 | D65: -0.9918199672 | E65: -1.19319 | F65: -0.9918254182 | G65: -0.5450980088 | I65: -0.5451930453 | J65: -9.503649505e-05
C66: =C65+Sheet2!B$12 -> -1.1618 | D66: -0.9999965604 | E66: -1.16179 | F66: -0.9999964534 | G66: 0.0107025067 | I66: 0.01062061413 | J66: -8.189257181e-05
C67: =C66+Sheet2!B$12 -> -1.1304 | D67: =SIN(x^3) -> -0.9920263723 | E67: -1.13039 | F67: -0.9920215404 | G67: =(F67-D67)/dxx -> 0.4831953483 | I67: 0.4831267343 | J67: -6.861405398e-05
C68: =C67+Sheet2!B$12 -> -1.099 | D68: -0.9705186231 | E68: -1.09899 | F68: -0.9705098892 | G68: 0.873390616 | I68: 0.8733348541 | J68: =I68-G68 -> -5.576197171e-05
C69: =C68+Sheet2!B$12 -> -1.0676 | D69: -0.938001191 | E69: -1.06759 | F69: -0.9379893382 | G69: 1.185285855 | I69: 1.185242124 | J69: -4.373088419e-05
C70: =C69+Sheet2!B$12 -> -1.0362 | D70: -0.8968423806 | E70: -1.03619 | F70: -0.8968281316 | G70: 1.424901022 | I70: 1.424868247 | J70: -3.277478758e-05
C71: =C70+Sheet2!B$12 -> -1.0048 | D71: -0.8492003876 | E71: -1.00479 | F71: -0.8491843928 | G71: 1.599480178 | I71: 1.599457144 | J71: -2.303390399e-05
C72: =C71+Sheet2!B$12 -> -0.9734 | D72: -0.7969952315 | E72: -0.97339 | F72: -0.796978063 | G72: 1.716857317 | I72: 1.716842757 | J72: -1.455992416e-05
C73: =C72+Sheet2!B$12 -> -0.942 | D73: -0.7418981847 | E73: -0.94199 | F73: -0.741880335 | G73: 1.784973442 | I73: 1.784966103 | J73: -7.338771823e-06
C74: =C73+Sheet2!B$12 -> -0.9106 | D74: -0.6853342302 | E74: -0.91059 | F74: -0.6853161149 | G74: 1.811526254 | I74: 1.811524944 | J74: -1.310042589e-06
C75: =C74+Sheet2!B$12 -> -0.8792 | D75: -0.6284937123 | E75: -0.87919 | F75: -0.628475675 | G75: 1.803731418 | I75: 1.803735035 | J75: 3.617001494e-06
C76: =C75+Sheet2!B$12 -> -0.8478 | D76: -0.5723500099 | E76: -0.84779 | F76: -0.5723323282 | G76: 1.768174291 | I76: 1.768181841 | J76: 7.550490524e-06
C77: =C76+Sheet2!B$12 -> -0.8164 | D77: -0.5176807055 | E77: -0.81639 | F77: -0.5176635982 | G77: 1.710732391 | I77: 1.710742998 | J77: 1.060629336e-05
C78: =C77+Sheet2!B$12 -> -0.785 | D78: -0.4650903115 | E78: -0.78499 | F78: -0.465073946 | G78: 1.636551118 | I78: 1.636564018 | J78: 1.290070201e-05
C79: =C78+Sheet2!B$12 -> -0.7536 | D79: -0.4150331206 | E79: -0.75359 | F79: -0.41501762 | G79: 1.550057826 | I79: 1.550072372 | J79: 1.454541436e-05
C80: =C79+Sheet2!B$12 -> -0.7222 | D80: -0.367835176 | E80: -0.72219 | F80: -0.367820626 | G80: 1.455002035 | I80: 1.455017679 | J80: 1.564417789e-05
C81: =C80+Sheet2!B$12 -> -0.6908 | D81: -0.3237146994 | E81: -0.69079 | F81: -0.3237011543 | G81: 1.354512006 | I81: 1.354528297 | J81: 1.629086793e-05
C82: =C81+Sheet2!B$12 -> -0.6594 | D82: -0.282800586 | E82: -0.65939 | F82: -0.2827880744 | G82: 1.251160218 | I82: 1.251176787 | J82: 1.656852657e-05
C83: =C82+Sheet2!B$12 -> -0.628 | D83: -0.2451487796 | E83: -0.62799 | F83: -0.2451373093 | G83: 1.147032123 | I83: 1.147048672 | J83: 1.654923644e-05
C84: =C83+Sheet2!B$12 -> -0.5966 | D84: -0.2107564911 | E84: -0.59659 | F84: -0.2107460532 | G84: 1.043794215 | I84: 1.043810509 | J84: 1.629444404e-05
C85: =C84+Sheet2!B$12 -> -0.5652 | D85: -0.1795743276 | E85: -0.56519 | F85: -0.1795649 | G85: 0.9427586673 | I85: 0.942774523 | J85: 1.585568103e-05
C86: =C85+Sheet2!B$12 -> -0.5338 | D86: -0.1515164689 | E86: -0.53379 | F86: -0.1515080195 | G86: 0.8449428351 | I86: 0.8449581105 | J86: 1.527546488e-05
C87: =C86+Sheet2!B$12 -> -0.5024 | D87: -0.1264690706 | E87: -0.50239 | F87: -0.1264615594 | G87: 0.7511226542 | I87: 0.7511372425 | J87: 1.458833317e-05
C88: =C87+Sheet2!B$12 -> -0.471 | D88: -0.1042970908 | E88: -0.47099 | F88: -0.104290472 | G88: 0.6618795397 | I88: 0.6618933616 | J88: 1.382187662e-05
C89: =C88+Sheet2!B$12 -> -0.4396 | D89: -0.08484974753 | E89: -0.43959 | F89: -0.08484397112 | G89: 0.5776407832 | I89: 0.5776537809 | J89: 1.299775736e-05
C90: =C89+Sheet2!B$12 -> -0.4082 | D90: -0.0679648063 | E90: -0.40819 | F90: -0.06795981916 | G90: 0.4987137204 | I90: 0.4987258531 | J90: 1.213267235e-05
C91: =C90+Sheet2!B$12 -> -0.3768 | D91: -0.05347188647 | E91: -0.37679 | F91: -0.05346763333 | G91: 0.4253141195 | I91: 0.4253253588 | J91: 1.123922633e-05
C92: =C91+Sheet2!B$12 -> -0.3454 | D92: -0.04119496028 | E92: -0.34539 | F92: -0.04119138439 | G92: 0.3575893388 | I92: 0.3575996655 | J92: 1.032672117e-05
C93: =C92+Sheet2!B$12 -> -0.314 | D93: -0.03095419868 | E93: -0.31399 | F93: -0.03095124231 | G93: 0.2956368577 | I93: 0.2956462596 | J93: 9.401846079e-06
C94: =C93+Sheet2!B$12 -> -0.2826 | D94: -0.02256730001 | E94: -0.28259 | F94: -0.02256490483 | G94: 0.2395187938 | I94: 0.2395272631 | J94: 8.469264259e-06
C95: =C94+Sheet2!B$12 -> -0.2512 | D95: -0.01585041795 | E95: -0.25119 | F95: -0.01584852522 | G95: 0.1892730064 | I95: 0.1892805385 | J95: 7.532113524e-06
C96: =C95+Sheet2!B$12 -> -0.2198 | D96: -0.01061878682 | E96: -0.21979 | F96: -0.01061733761 | G96: 0.144921356 | I96: 0.1449279484 | J96: 6.592413042e-06
C97: =C96+Sheet2!B$12 -> -0.1884 | D97: -0.006687125264 | E97: -0.18839 | F97: -0.006686060508 | G97: 0.1064756477 | I97: 0.1064812991 | J97: 5.651394459e-06
C98: =C97+Sheet2!B$12 -> -0.157 | D98: -0.003869883341 | E98: -0.15699 | F98: -0.003869143923 | G98: 0.07394173652 | I98: 0.07394644628 | J98: 4.709758931e-06
C99: =C98+Sheet2!B$12 -> -0.1256 | D99: -0.00198138392 | E99: -0.12559 | F99: -0.001980910697 | G99: 0.04732221923 | I99: 0.0473259871 | J99: 3.767870327e-06
C100: =C99+Sheet2!B$12 -> -0.0942 | D100: -0.0008358967907 | E100: -0.09419 | F100: -0.0008356306098 | G100: 0.0266180848 | I100: 0.0266209107 | J100: 2.825896059e-06
C101: =C100+Sheet2!B$12 -> -0.0628 | D101: -0.0002476731495 | E101: -0.06279 | F101: -0.0002475548531 | G101: 0.01182963574 | I101: 0.01183151964 | J101: 1.883899774e-06
C102: =C101+Sheet2!B$12 -> -0.0314 | D102: -3.0959144e-05 | E102: -0.03139 | F102: -3.092957461e-05 | G102: 0.002956938099 | I102: 0.002957879999 | J102: 9.41899997e-07
C103: =C102+Sheet2!B$12 -> 5.981326545e-15 | D103: 2.139895369e-43 | E103: 1.000000001e-05 | F103: 1.000000002e-15 | G103: 1.000000002e-10 | I103: 1.073288017e-28 | J103: -1.000000002e-10
C104: =C103+Sheet2!B$12 -> 0.0314 | D104: 3.0959144e-05 | E104: 0.03141 | F104: 3.098873222e-05 | G104: 0.002958822099 | I104: 0.002957879999 | J104: -9.420999989e-07
C105: =C104+Sheet2!B$12 -> 0.0628 | D105: 0.0002476731495 | E105: 0.06281 | F105: 0.0002477914835 | G105: 0.01183340374 | I105: 0.01183151964 | J105: -1.884099762e-06
C106: =C105+Sheet2!B$12 -> 0.0942 | D106: 0.0008358967907 | E106: 0.09421 | F106: 0.000836163028 | G106: 0.0266237368 | I106: 0.0266209107 | J106: -2.826096035e-06
C107: =C106+Sheet2!B$12 -> 0.1256 | D107: 0.00198138392 | E107: 0.12561 | F107: 0.001981857217 | G107: 0.04732975517 | I107: 0.0473259871 | J107: -3.768070416e-06
C108: =C107+Sheet2!B$12 -> 0.157 | D108: 0.003869883341 | E108: 0.15701 | F108: 0.003870622852 | G108: 0.07395115624 | I108: 0.07394644628 | J108: -4.709958971e-06
C109: =C108+Sheet2!B$12 -> 0.1884 | D109: 0.006687125264 | E109: 0.18841 | F109: 0.006688190134 | G109: 0.1064869507 | I109: 0.1064812991 | J109: -5.651594541e-06
C110: =C109+Sheet2!B$12 -> 0.2198 | D110: 0.01061878682 | E110: 0.21981 | F110: 0.01062023617 | G110: 0.144934541 | I110: 0.1449279484 | J110: -6.59261293e-06
C111: =C110+Sheet2!B$12 -> 0.2512 | D111: 0.01585041795 | E111: 0.25121 | F111: 0.01585231084 | G111: 0.1892880708 | I111: 0.1892805385 | J111: -7.532312901e-06
C112: =C111+Sheet2!B$12 -> 0.2826 | D112: 0.02256730001 | E112: 0.28261 | F112: 0.02256969537 | G112: 0.2395357326 | I112: 0.2395272631 | J112: -8.469463224e-06
C113: =C112+Sheet2!B$12 -> 0.314 | D113: 0.03095419868 | E113: 0.31401 | F113: 0.03095715523 | G113: 0.2956556616 | I113: 0.2956462596 | J113: -9.402043594e-06
C114: =C113+Sheet2!B$12 -> 0.3454 | D114: 0.04119496028 | E114: 0.34541 | F114: 0.04119853638 | G114: 0.3576099924 | I114: 0.3575996655 | J114: -1.032691803e-05
C115: =C114+Sheet2!B$12 -> 0.3768 | D115: 0.05347188647 | E115: 0.37681 | F115: 0.05347613984 | G115: 0.4253365982 | I115: 0.4253253588 | J115: -1.123941967e-05
C116: =C115+Sheet2!B$12 -> 0.4082 | D116: 0.0679648063 | E116: 0.40821 | F116: 0.06796979368 | G116: 0.498737986 | I116: 0.4987258531 | J116: -1.213286165e-05
C117: =C116+Sheet2!B$12 -> 0.4396 | D117: 0.08484974753 | E117: 0.43961 | F117: 0.0848555242 | G117: 0.5776667789 | I117: 0.5776537809 | J117: -1.299793987e-05
C118: =C117+Sheet2!B$12 -> 0.471 | D118: 0.1042970908 | E118: 0.47101 | F118: 0.1043037098 | G118: 0.6619071836 | I118: 0.6618933616 | J118: -1.382204661e-05
C119: =C118+Sheet2!B$12 -> 0.5024 | D119: 0.1264690706 | E119: 0.50241 | F119: 0.1264765821 | G119: 0.751151831 | I119: 0.7511372425 | J119: -1.458848054e-05
C120: =C119+Sheet2!B$12 -> 0.5338 | D120: 0.1515164689 | E120: 0.53381 | F120: 0.1515249186 | G120: 0.8449733861 | I120: 0.8449581105 | J120: -1.527558844e-05
C121: =C120+Sheet2!B$12 -> 0.5652 | D121: 0.1795743276 | E121: 0.56521 | F121: 0.1795837555 | G121: 0.9427903788 | I121: 0.942774523 | J121: -1.585578017e-05
C122: =C121+Sheet2!B$12 -> 0.5966 | D122: 0.2107564911 | E122: 0.59661 | F122: 0.2107669294 | G122: 1.043826804 | I122: 1.043810509 | J122: -1.629451245e-05
C123: =C122+Sheet2!B$12 -> 0.628 | D123: 0.2451487796 | E123: 0.62801 | F123: 0.2451602503 | G123: 1.147065222 | I123: 1.147048672 | J123: -1.654926246e-05
C124: =C123+Sheet2!B$12 -> 0.6594 | D124: 0.282800586 | E124: 0.65941 | F124: 0.2828130979 | G124: 1.251193355 | I124: 1.251176787 | J124: -1.65684943e-05
C125: =C124+Sheet2!B$12 -> 0.6908 | D125: 0.3237146994 | E125: 0.69081 | F125: 0.3237282448 | G125: 1.354544588 | I125: 1.354528297 | J125: -1.629076387e-05
C126: =C125+Sheet2!B$12 -> 0.7222 | D126: 0.367835176 | E126: 0.72221 | F126: 0.3678497263 | G126: 1.455033323 | I126: 1.455017679 | J126: -1.564397748e-05
C127: =C126+Sheet2!B$12 -> 0.7536 | D127: 0.4150331206 | E127: 0.75361 | F127: 0.4150486214 | G127: 1.550086917 | I127: 1.550072372 | J127: -1.454511559e-05
C128: =C127+Sheet2!B$12 -> 0.785 | D128: 0.4650903115 | E128: 0.78501 | F128: 0.4651066772 | G128: 1.636576918 | I128: 1.636564018 | J128: -1.290027598e-05
C129: =C128+Sheet2!B$12 -> 0.8164 | D129: 0.5176807055 | E129: 0.81641 | F129: 0.517697813 | G129: 1.710753603 | I129: 1.710742998 | J129: -1.060570544e-05
C130: =C129+Sheet2!B$12 -> 0.8478 | D130: 0.5723500099 | E130: 0.84781 | F130: 0.5723676918 | G130: 1.768189391 | I130: 1.768181841 | J130: -7.549730531e-06
C131: =C130+Sheet2!B$12 -> 0.8792 | D131: =SIN(x^3) -> 0.6284937123 | E131: 0.87921 | F131: 0.6285117497 | G131: =(F131-D131)/dxx -> 1.803738651 | I131: 1.803735035 | J131: -3.61603489e-06
C132: =C131+Sheet2!B$12 -> 0.9106 | D132: 0.6853342302 | E132: 0.91061 | F132: 0.6853523454 | G132: 1.811523632 | I132: 1.811524944 | J132: =I132-G132 -> 1.311205071e-06
C133: =C132+Sheet2!B$12 -> 0.942 | D133: 0.7418981847 | E133: 0.94201 | F133: 0.7419160343 | G133: 1.784958763 | I133: 1.784966103 | J133: 7.340208413e-06
C134: =C133+Sheet2!B$12 -> 0.9734 | D134: 0.7969952315 | E134: 0.97341 | F134: 0.7970123998 | G134: 1.716828195 | I134: 1.716842757 | J134: 1.456160321e-05
C135: =C134+Sheet2!B$12 -> 1.0048 | D135: 0.8492003876 | E135: 1.00481 | F135: 0.8492163819 | G135: 1.599434108 | I135: 1.599457144 | J135: 2.303582177e-05
C136: =C135+Sheet2!B$12 -> 1.0362 | D136: 0.8968423806 | E136: 1.03621 | F136: 0.896856629 | G136: 1.42483547 | I136: 1.424868247 | J136: 3.277696526e-05
C137: =C136+Sheet2!B$12 -> 1.0676 | D137: 0.938001191 | E137: 1.06761 | F137: 0.938013043 | G137: 1.185198391 | I137: 1.185242124 | J137: 4.373330715e-05
C138: =C137+Sheet2!B$12 -> 1.099 | D138: 0.9705186231 | E138: 1.09901 | F138: 0.9705273559 | G138: 0.8732790894 | I138: 0.8733348541 | J138: 5.576462723e-05
C139: =C138+Sheet2!B$12 -> 1.1304 | D139: 0.9920263723 | E139: 1.13041 | F139: 0.9920312029 | G139: 0.4830581174 | I139: 0.4831267343 | J139: 6.861683917e-05
C140: =C139+Sheet2!B$12 -> 1.1618 | D140: 0.9999965604 | E140: 1.16181 | F140: 0.9999966658 | G140: 0.01053871874 | I140: 0.01062061413 | J140: 8.189538896e-05
C141: =C140+Sheet2!B$12 -> 1.1932 | D141: 0.9918199672 | E141: 1.19321 | F141: 0.9918145143 | G141: -0.5452880845 | I141: -0.5451930453 | J141: 9.503922655e-05
C142: =C141+Sheet2!B$12 -> 1.2246 | D142: 0.9649170319 | E142: 1.22461 | F142: 0.9649052186 | G142: -1.181325248 | I142: -1.18121795 | J142: 0.0001072986098
C143: =C142+Sheet2!B$12 -> 1.256 | D143: 0.9168859271 | E143: 1.25601 | F143: 0.9168670357 | G143: -1.889135087 | I143: -1.889017366 | J143: 0.0001177210458
C144: =C143+Sheet2!B$12 -> 1.2874 | D144: 0.8456903849 | E144: 1.28741 | F144: 0.8456638484 | G144: -2.653656258 | I144: -2.653531107 | J144: 0.0001251510463
C145: =C144+Sheet2!B$12 -> 1.3188 | D145: 0.7498872232 | E145: 1.31881 | F145: 0.7498527034 | G145: -3.451979725 | I145: -3.451851474 | J145: 0.0001282504155
C146: =C145+Sheet2!B$12 -> 1.3502 | D146: 0.6288894317 | E146: 1.35021 | F146: 0.6288469083 | G146: -4.252337715 | I146: -4.252212168 | J146: 0.0001255469878
C147: =C146+Sheet2!B$12 -> 1.3816 | D147: 0.4832550486 | E147: 1.38161 | F147: 0.4832049135 | G147: -5.01351074 | I147: -5.01339522 | J147: 0.0001155206142
C148: =C147+Sheet2!B$12 -> 1.413 | D148: 0.3149848169 | E148: 1.41301 | F148: 0.3149279678 | G148: -5.684907941 | I148: -5.684811208 | J148: 9.673263455e-05
C149: =C148+Sheet2!B$12 -> 1.4444 | D149: 0.1278029175 | E149: 1.44441 | F149: 0.1277408414 | G149: -6.207616713 | I149: -6.207548707 | J149: 6.800551868e-05
C150: =C149+Sheet2!B$12 -> 1.4758 | D150: -0.07261458738 | E150: 1.47581 | F150: -0.07267975474 | G150: -6.516736424 | I150: -6.516707772 | J150: 2.86518946e-05
C151: =C150+Sheet2!B$12 -> 1.5072 | D151: -0.2785086777 | E151: 1.50721 | F151: -0.2785741306 | G151: -6.545291778 | I151: -6.545313032 | J151: -2.125357441e-05
C152: =C151+Sheet2!B$12 -> 1.5386 | D152: -0.480056992 | E152: 1.53861 | F152: -0.4801192915 | G152: -6.229944597 | I152: -6.230025174 | J152: -8.057726887e-05
C153: =C152+Sheet2!B$12 -> 1.57 | D153: -0.665602134 | E153: 1.57001 | F153: -0.6656573197 | G153: -5.518567856 | I153: -5.518714693 | J153: -0.000146837081
C154: =C153+Sheet2!B$12 -> 1.6014 | D154: -0.8221449979 | E154: 1.60141 | F154: -0.8221887928 | G154: -4.379494605 | I154: -4.379710573 | J154: -0.0002159681846
C155: =C154+Sheet2!B$12 -> 1.6328 | D155: -0.9361482282 | E155: 1.63281 | F155: -0.9361763471 | G155: -2.81189715 | I155: -2.812179359 | J155: -0.0002822092663
C156: =C155+Sheet2!B$12 -> 1.6642 | D156: -0.9946708961 | E156: 1.66421 | F156: -0.994679459 | G156: -0.8562952234 | I156: -0.8566334128 | J156: -0.0003381894358
C157: =C156+Sheet2!B$12 -> 1.6956 | D157: -0.9868159239 | E157: 1.69561 | F157: -0.9868019606 | G157: 1.396331323 | I157: 1.395956023 | J157: -0.0003752998522
C158: =C157+Sheet2!B$12 -> 1.727 | D158: -0.9054156208 | E158: 1.72701 | F158: -0.9053776321 | G158: 3.798870159 | I158: 3.798485731 | J158: -0.0003844286613
C159: =C158+Sheet2!B$12 -> 1.7584 | D159: -0.7488096527 | E159: 1.75841 | F159: -0.7487481698 | G159: 6.148293263 | I159: 6.147936157 | J159: -0.0003571055803
C160: =C159+Sheet2!B$12 -> 1.7898 | D160: -0.5224899002 | E160: 1.78981 | F160: -0.5224079568 | G160: 8.194339754 | I160: 8.194052709 | J160: -0.0002870449244
C161: =C160+Sheet2!B$12 -> 1.8212 | D161: -0.2403096178 | E161: 1.82121 | F161: -0.2402130288 | G161: 9.658899356 | I161: 9.658727372 | J161: -0.0001719840455
C162: =C161+Sheet2!B$12 -> 1.8526 | D162: 0.07510194898 | E162: 1.85261 | F162: 0.07520462215 | G162: 10.26731746 | I162: 10.26730187 | J162: -1.559278244e-05
C163: =C162+Sheet2!B$12 -> 1.884 | D163: 0.3930900793 | E163: 1.88401 | F163: 0.3931879893 | G163: 9.791003117 | I163: 9.791174026 | J163: 0.0001709084617
C164: =C163+Sheet2!B$12 -> 1.9154 | D164: 0.6772011817 | E164: 1.91541 | F164: 0.677282162 | G164: 8.098023601 | I164: 8.098391515 | J164: 0.0003679141483
C165: =C164+Sheet2!B$12 -> 1.9468 | D165: 0.8890407018 | E165: 1.94681 | F165: 0.8890927518 | G165: 5.204999845 | I165: 5.205547794 | J165: 0.0005479492952
C166: =C165+Sheet2!B$12 -> 1.9782 | D166: 0.9936515123 | E166: 1.97821 | F166: 0.9936647131 | G166: 1.320074338 | I166: 1.320752414 | J166: 0.0006780760799
C167: =C166+Sheet2!B$12 -> 2.0096 | D167: 0.9659328599 | E167: 2.00961 | F167: 0.9659014986 | G167: -3.136122532 | I167: -3.135398009 | J167: 0.0007245226888
C168: =C167+Sheet2!B$12 -> 2.041 | D168: 0.7971879716 | E168: 2.04101 | F168: 0.7971125164 | G168: -7.545513981 | I168: -7.54485452 | J168: 0.0006594616404
C169: =C168+Sheet2!B$12 -> 2.0724 | D169: 0.500475478 | E169: 2.07241 | F169: 0.5003639254 | G169: -11.15525616 | I169: -11.15478694 | J169: 0.0004692208214
C170: =C169+Sheet2!B$12 -> 2.1038 | D170: 0.1131699614 | E170: 2.10381 | F170: 0.1130380335 | G170: -13.19278364 | I170: -13.19262121 | J170: 0.0001624319646
C171: =C170+Sheet2!B$12 -> 2.1352 | D171: -0.3048373111 | E171: 2.13521 | F171: -0.3049675714 | G171: -13.02603717 | I171: -13.02626133 | J171: -0.0002241605493
C172: =C171+Sheet2!B$12 -> 2.1666 | D172: -0.6783976621 | E172: 2.16661 | F172: -0.678501119 | G172: -10.34569163 | I172: -10.3463166 | J172: -0.0006249716573
C173: =C172+Sheet2!B$12 -> 2.198 | D173: -0.9299248465 | E173: 2.19801 | F173: -0.9299781372 | G173: -5.329067742 | I173: -5.330020242 | J173: -0.000952500357
C174: =C173+Sheet2!B$12 -> 2.2294 | D174: -0.9963859465 | E174: 2.22941 | F174: -0.99637327 | G174: 1.267647126 | I174: 1.266533817 | J174: -0.001113309623
C175: =C174+Sheet2!B$12 -> 2.2608 | D175: -0.8473271893 | E175: 2.26081 | F175: -0.8472457464 | G175: 8.144292194 | I175: 8.143260076 | J175: -0.001032117727
C176: =C175+Sheet2!B$12 -> 2.2922 | D176: -0.4992537487 | E176: 2.29221 | F176: -0.4991171664 | G176: 13.65822651 | I176: 13.65754676 | J176: -0.0006797490859
C177: =C176+Sheet2!B$12 -> 2.3236 | D177: -0.0209809065 | E177: 2.32361 | F177: -0.02081896768 | G177: 16.19388261 | I177: 16.19378546 | J177: -9.714447366e-05
C178: =C177+Sheet2!B$12 -> 2.355 | D178: 0.4746076806 | E178: 2.35501 | F178: 0.4747541226 | G178: 14.64419637 | I178: 14.64479117 | J178: 0.0005948046507
C179: =C178+Sheet2!B$12 -> 2.3864 | D179: 0.8541689673 | E179: 2.38641 | F179: 0.854257795 | G179: 8.882766332 | I179: 8.883975764 | J179: 0.001209432129
C180: =C179+Sheet2!B$12 -> 2.4178 | D180: 0.999994568 | E180: 2.41781 | F180: 0.9999951307 | G180: 0.05626613062 | I180: 0.05780367549 | J180: 0.001537544873
C181: =C180+Sheet2!B$12 -> 2.4492 | D181: 0.8501339179 | E181: 2.44921 | F181: 0.8500391442 | G181: -9.477370783 | I181: -9.475955568 | J181: 0.00141521566
C182: =C181+Sheet2!B$12 -> 2.4806 | D182: 0.4294628242 | E182: 2.48061 | F182: 0.4292961056 | G182: -16.67185601 | I182: -16.67105714 | J182: 0.000798871105
C183: =C182+Sheet2!B$12 -> 2.512 | D183: -0.1426303802 | E183: 2.51201 | F183: -0.1428177472 | G183: -18.7367066 | I183: -18.73688769 | J183: -0.0001810901773
C184: =C183+Sheet2!B$12 -> 2.5434 | D184: -0.6779682663 | E184: 2.54341 | F184: -0.6781109106 | G184: -14.26443689 | I184: -14.26565758 | J184: -0.001220686197
C185: =C184+Sheet2!B$12 -> 2.5748 | D185: -0.9782641318 | E185: 2.57481 | F185: -0.9783053545 | G185: -4.122273283 | I185: -4.124192137 | J185: -0.001918853876
C186: =C185+Sheet2!B$12 -> 2.6062 | D186: -0.9117480244 | E186: 2.60621 | F186: -0.9116643073 | G186: 8.371709481 | I186: 8.36978455 | J186: -0.001924930917
C187: =C186+Sheet2!B$12 -> 2.6376 | D187: -0.4793794088 | E187: 2.63761 | F187: -0.4791962339 | G187: 18.31749057 | I187: 18.31637718 | J187: -0.001113383581
C188: =C187+Sheet2!B$12 -> 2.669 | D188: 0.162504523 | E188: 2.66901 | F188: 0.1627153863 | G188: 21.08632734 | I188: 21.08661958 | J188: 0.0002922413338
C189: =C188+Sheet2!B$12 -> 2.7004 | D189: 0.7461053236 | E189: 2.70041 | F189: 0.746250966 | G189: 14.56424039 | I189: 14.56597194 | J189: 0.001731546191
C190: =C189+Sheet2!B$12 -> 2.7318 | D190: 0.9994334531 | E190: 2.73181 | F190: 0.9994409632 | G190: 0.7510104804 | I190: 0.7535124829 | J190: 0.002502002553
C191: =C190+Sheet2!B$12 -> 2.7632 | D191: 0.7791814264 | E191: 2.76321 | F191: 0.7790378321 | G191: -14.35943026 | I191: -14.35733432 | J191: 0.002095940071
C192: =C191+Sheet2!B$12 -> 2.7946 | D192: 0.1651516676 | E192: 2.79461 | F192: 0.1649205858 | G192: -23.10817544 | I192: -23.10763967 | J192: 0.0005357668804
C193: =C192+Sheet2!B$12 -> 2.826 | D193: -0.5464063674 | E193: 2.82601 | F193: -0.5466070124 | G193: -20.06450491 | I193: -20.06600236 | J193: -0.001497453771
C194: =C193+Sheet2!B$12 -> 2.8574 | D194: -0.9732011811 | E194: 2.85741 | F194: -0.9732574779 | G194: -5.629673411 | I194: -5.632573213 | J194: -0.002899802708
C195: =C194+Sheet2!B$12 -> 2.8888 | D195: =SIN(x^3) -> -0.8548321615 | E195: 2.88881 | F195: -0.8547022239 | G195: =(F195-D195)/dxx -> 12.9937578 | I195: 12.99103401 | J195: -0.002723794988
C196: =C195+Sheet2!B$12 -> 2.9202 | D196: -0.2285003868 | E196: 2.92021 | F196: -0.2282513196 | G196: 24.9067163 | I196: 24.90588354 | J196: =I196-G196 -> -0.0008327601481
C197: =C196+Sheet2!B$12 -> 2.9516 | D197: 0.5492182068 | E197: 2.95161 | F197: 0.5494366004 | G197: 21.83935981 | I197: 21.84116188 | J197: 0.001802067268
C198: =C197+Sheet2!B$12 -> 2.983 | D198: 0.9872366068 | E198: 2.98301 | F198: 0.9872790861 | G198: 4.247932372 | I198: 4.251435796 | J198: 0.003503424429
C199: =C198+Sheet2!B$12 -> 3.0144 | D199: 0.7730686383 | E199: 3.01441 | F199: 0.7728956938 | G199: -17.29444469 | I199: -17.29151519 | J199: 0.002929496445
C200: =C199+Sheet2!B$12 -> 3.0458 | D200: 0.01875795019 | E200: 3.04581 | F200: 0.01847969059 | G200: -27.82595987 | I200: -27.82579623 | J200: 0.0001636441838
... 205 more rows

Sheet Defining Function
A1: Defining a Function in Excel
A3: Computers have very specific rules you must follow when defining a function. If you don't, the program will either not work at all or will work incorrectly.
A5: 1. The Variable used should be the one named in the instruction, usually x, though sometimes y, t, Q (for an angle theta),
A6: or even x and y (for a function of two variables).
A8: 2. Order of Operations: There five arithmetic operations, addition (+), subtraction (-), multiplication (*), division (/), and exponentiation or power (^). When computers see any of these operation symbols, they perform the indicated steps in a very particular order. First, the power is done. Second, products and quotients of adjacent terms is done. Third, and last, sums and differences of adjacent terms are done. So, in 10*x^3 + 5*x – 7, say with x = 2, the first pass only calculates 2^3 and ignores the multiplications and the sums and differences to calculate 2^3 = 8. The second pass looks at 10*8 + 5*2 – 7 and only does the multiplications, so it produces 80 + 10 - 7. The third pass looks at the +’s and –‘s to produce 80 + 10 – 7 = 83.
A10: 3. Parentheses If you need an operation involving more than two adjacent terms, as in Ö4^3 + 6^2, the computer would take the square root of 4 to produce 2^3 + 6^2; it would then cube the 2 and square the 6 to produce 8 + 36; and finally it would add the 8 and the 36 to get 44. If you actually wanted the square root of the entire expression, you would need to use parentheses, as in Ö(4^3 + 6^2) to tell the computer to do all the operations inside the parentheses before taking the square root. Therefore, it would calculate (4^3 + 6^2) = 64 + 36 = 100 and then take the square root of Ö100 = 10.
A12: 4. Built-In Functions Computer programs have built-in functions for most common algebraic functions. In Excel, the square root function is denoted by SQRT(…), so SQRT(100) = 10. Alternatively, you could enter it as 100^.5 or 100^(1/2); notice that parentheses are needed to have the ½ done first. The common trig functions are SIN (…), COS (…), and TAN (…), where the arguments are automatically interpreted as being in radians, not degrees. The logarithm to the base 10 is represented by LOG (…) and the logarithm with the base e, known as the natural logarithm, is LN (…). The corresponding exponential function with base e is EXP (x). If x is the variable, then each of these would be SQRT (x), SIN (x), COS (x), TAN (x), LOG (x) (for log with base 10 ), LN (x) (for log with base e ), and EXP (x).

Sheet Sheet3
